Department Family,Entity,Date,Expense Type,Expense Area,Supplier,Transaction Number,AP Amount,Supplier Postcode,VAT Registration Number,Purchase Invoice Number,
Department of Health,St. Helens&Knowsley Hospitals NHS Trust,30/04/2023,VAT Cont Out Serv Inp Tax,Balance Sheet,KARL STORZ ENDOSCOPY UK LTD,46616616,"25,981.79",DD2 1UB,663726417,5080320827,
Department of Health,St. Helens&Knowsley Hospitals NHS Trust,30/04/2023,VAT Cont Out Serv Inp Tax,Balance Sheet,KARL STORZ ENDOSCOPY UK LTD,46616617,"30,795.50",DD2 1UB,663726417,5080322196,
Department of Health,St. Helens&Knowsley Hospitals NHS Trust,30/04/2023,VAT Cont Out Serv Inp Tax,Balance Sheet,KARL STORZ ENDOSCOPY UK LTD,46616618,"11,777.86",DD2 1UB,663726417,5080322200,
Department of Health,St. Helens&Knowsley Hospitals NHS Trust,30/04/2023,VAT Cont Out Serv Inp Tax,Balance Sheet,KARL STORZ ENDOSCOPY UK LTD,46616619,"18,253.48",DD2 1UB,663726417,5080322332,
Department of Health,St. Helens&Knowsley Hospitals NHS Trust,30/04/2023,VAT Cont Out Serv Inp Tax,Balance Sheet,OLYMPUS KEYMED,46629614,"151,279.38",SS2 5QH,250317495,A1758027,
Department of Health,St. Helens&Knowsley Hospitals NHS Trust,30/04/2023,VAT Cont Out Serv Inp Tax,Balance Sheet,PHILIPS ELECTRONICS UK LTD,46629617,"16,626.69",GU14 6XW,407850060,9022512703,
Department of Health,St. Helens&Knowsley Hospitals NHS Trust,30/04/2023,VAT Cont Out Serv Inp Tax,Balance Sheet,PHILIPS ELECTRONICS UK LTD,46629618,"40,833.40",GU14 6XW,407850060,7300408960,
Department of Health,St. Helens&Knowsley Hospitals NHS Trust,30/04/2023,VAT Cont Out Serv Inp Tax,Balance Sheet,VINCI CONSTRUCTION UK LTD,46629621,"228,200.00",WD24 4WW,165103003,23030027,
Department of Health,St. Helens&Knowsley Hospitals NHS Trust,30/04/2023,VAT Cont Out Serv Inp Tax,Balance Sheet,VINCI CONSTRUCTION UK LTD,46629622,"488,400.00",WD24 4WW,165103003,23030899,
Department of Health,St. Helens&Knowsley Hospitals NHS Trust,30/04/2023,VAT Cont Out Serv Inp Tax,Balance Sheet,VINCI CONSTRUCTION UK LTD,46629623,"1,130,000.00",WD24 4WW,165103003,23030903,
Department of Health,St. Helens&Knowsley Hospitals NHS Trust,30/04/2023,VAT Cont Out Serv Inp Tax,Balance Sheet,VINCI CONSTRUCTION UK LTD,46629624,"469,000.00",WD24 4WW,165103003,23030902,
Department of Health,St. Helens&Knowsley Hospitals NHS Trust,30/04/2023,VAT Cont Out Serv Inp Tax,Balance Sheet,VINCI CONSTRUCTION UK LTD,46629625,"260,000.00",WD24 4WW,165103003,23030900,
Department of Health,St. Helens&Knowsley Hospitals NHS Trust,30/04/2023,AUC Additions,Balance Sheet,VINCI CONSTRUCTION UK LTD,46629621,"1,141,000.00",WD24 4WW,165103003,23030027,
Department of Health,St. Helens&Knowsley Hospitals NHS Trust,30/04/2023,AUC Additions,Balance Sheet,VINCI CONSTRUCTION UK LTD,46629622,"2,442,000.00",WD24 4WW,165103003,23030899,
Department of Health,St. Helens&Knowsley Hospitals NHS Trust,30/04/2023,AUC Additions,Balance Sheet,VINCI CONSTRUCTION UK LTD,46629623,"5,650,000.00",WD24 4WW,165103003,23030903,
Department of Health,St. Helens&Knowsley Hospitals NHS Trust,30/04/2023,AUC Additions,Balance Sheet,VINCI CONSTRUCTION UK LTD,46629624,"2,345,000.00",WD24 4WW,165103003,23030902,
Department of Health,St. Helens&Knowsley Hospitals NHS Trust,30/04/2023,AUC Additions,Balance Sheet,VINCI CONSTRUCTION UK LTD,46629625,"1,300,000.00",WD24 4WW,165103003,23030900,
Department of Health,St. Helens&Knowsley Hospitals NHS Trust,30/04/2023,"Books, Journals & Subscr",LIBRARY SERVICES,UPTODATE INC,46464844,"48,180.68",MA 02241 2094,,8558475,
Department of Health,St. Helens&Knowsley Hospitals NHS Trust,30/04/2023,CompSwrPrch Additions,Balance Sheet,PHILIPS ELECTRONICS UK LTD,46629618,"204,167.00",GU14 6XW,407850060,7300408960,
Department of Health,St. Helens&Knowsley Hospitals NHS Trust,30/04/2023,Computer Hardware Purch,MMDA PROGRAMME COSTS - SHARED SERVICES,DELL CORPORATION LTD,46423192,"27,800.00",RG12 1LF,635823528,7402905197,
Department of Health,St. Helens&Knowsley Hospitals NHS Trust,30/04/2023,Computer Hardware Purch,MMDA PROGRAMME COSTS - SHARED SERVICES,DELL CORPORATION LTD,46423192,"5,560.00",RG12 1LF,635823528,7402905197,
Department of Health,St. Helens&Knowsley Hospitals NHS Trust,30/04/2023,Computer Maintenance,MMDA PROGRAMME COSTS - SHARED SERVICES,SYSTEM C HEALTHCARE LTD,46392676,"428,600.00",CV37 6NT,927438206,033903,
Department of Health,St. Helens&Knowsley Hospitals NHS Trust,30/04/2023,Computer Maintenance,MMDA PROGRAMME COSTS - SHARED SERVICES,QA LTD,46497630,"40,000.00",LS12 6BD,864455303,QASIN000285675,
Department of Health,St. Helens&Knowsley Hospitals NHS Trust,30/04/2023,Computer Maintenance,MMDA PROGRAMME COSTS - SHARED SERVICES,QA LTD,46497630,"8,000.00",LS12 6BD,864455303,QASIN000285675,
Department of Health,St. Helens&Knowsley Hospitals NHS Trust,30/04/2023,Computer Maintenance,HISTOPATHOLOGY/MORTUARY,PHILIPS UK AND IRELAND,46549003,"91,309.56",GU2 8XG,GB407850060,7300409558,
Department of Health,St. Helens&Knowsley Hospitals NHS Trust,30/04/2023,Computer Maintenance,MMDA PROGRAMME COSTS - SHARED SERVICES,SOFTCAT PLC,46622042,"126,456.48",SL7 1LW,GB491848503,INVUK809736,
Department of Health,St. Helens&Knowsley Hospitals NHS Trust,30/04/2023,Computer Maintenance,MMDA PROGRAMME COSTS - SHARED SERVICES,SOFTCAT PLC,46622042,"25,291.30",SL7 1LW,GB491848503,INVUK809736,
Department of Health,St. Helens&Knowsley Hospitals NHS Trust,30/04/2023,Computer Network Costs,MMDA PROGRAMME COSTS - SHARED SERVICES,BRITISH TELECOMMUNICATIONS PLC,46438567,"47,801.70",S98 1BT,GB-245719348,BTSTM002278,
Department of Health,St. Helens&Knowsley Hospitals NHS Trust,30/04/2023,Computer Software/License,CIPHA - STP SHARED CARE RECORD,GRAPHNET HEALTH LTD,46453783,"192,500.00",MK14 6DY,GB 650603758,54294,
Department of Health,St. Helens&Knowsley Hospitals NHS Trust,30/04/2023,Computer Software/License,CIPHA - STP SHARED CARE RECORD,GRAPHNET HEALTH LTD,46453783,"38,500.00",MK14 6DY,GB 650603758,54294,
Department of Health,St. Helens&Knowsley Hospitals NHS Trust,30/04/2023,Computer Software/License,CIPHA - STP SHARED CARE RECORD,MANCHESTER METROPOLITAN UNIVERSITY,46527578,"27,200.00",M15 6BH,108260441,91284255,
Department of Health,St. Helens&Knowsley Hospitals NHS Trust,30/04/2023,Continence Products,COMMUNITY CONTINENCE SERVICE,ESSITY UK LTD,46513993,"47,433.00",LU6 3EJ,GB 600 4331 06,6402089016,
Department of Health,St. Helens&Knowsley Hospitals NHS Trust,30/04/2023,Continence Products,COMMUNITY CONTINENCE SERVICE,ESSITY UK LTD,46643873,"65,098.46",LU6 3EJ,GB 600 4331 06,6402100696,
Department of Health,St. Helens&Knowsley Hospitals NHS Trust,30/04/2023,Equip Maint Contracts,RADIOGRAPHY WHISTON,GE MEDICAL SYSTEMS LTD,46456085,"4,684.74",M33 2HR,GB578438784,122R737,
Department of Health,St. Helens&Knowsley Hospitals NHS Trust,30/04/2023,Equip Maint Contracts,RADIOGRAPHY WHISTON,GE MEDICAL SYSTEMS LTD,46456085,"4,684.74",M33 2HR,GB578438784,122R737,
Department of Health,St. Helens&Knowsley Hospitals NHS Trust,30/04/2023,Equip Maint Contracts,RADIOGRAPHY WHISTON,GE MEDICAL SYSTEMS LTD,46456085,"6,332.12",M33 2HR,GB578438784,122R737,
Department of Health,St. Helens&Knowsley Hospitals NHS Trust,30/04/2023,Equip Maint Contracts,RADIOGRAPHY WHISTON,GE MEDICAL SYSTEMS LTD,46456085,"6,332.12",M33 2HR,GB578438784,122R737,
Department of Health,St. Helens&Knowsley Hospitals NHS Trust,30/04/2023,External Consultancy Fees,FINANCE DIRECTORATE HQ,ADDLESHAW GODDARD LLP,46416332,"21,490.75",LS1 4ER,100135687,1001031443,
Department of Health,St. Helens&Knowsley Hospitals NHS Trust,30/04/2023,External Consultancy Fees,FINANCE DIRECTORATE HQ,ADDLESHAW GODDARD LLP,46416332,"4,298.15",LS1 4ER,100135687,1001031443,
Department of Health,St. Helens&Knowsley Hospitals NHS Trust,30/04/2023,External Contractors,ST HELENS UTC,ST HELENS ROTA,46591247,"87,381.88",WA10 2HU,,3370,
Department of Health,St. Helens&Knowsley Hospitals NHS Trust,30/04/2023,IGComp3PSoft - Additions,Balance Sheet,SPACELABS HEALTHCARE LTD,46392850,"6,692.55",SG13 7DT,573274135,IN317408,
Department of Health,St. Helens&Knowsley Hospitals NHS Trust,30/04/2023,IGComp3PSoft - Additions,Balance Sheet,SPACELABS HEALTHCARE LTD,46392850,"9,381.24",SG13 7DT,573274135,IN317408,
Department of Health,St. Helens&Knowsley Hospitals NHS Trust,30/04/2023,IGComp3PSoft - Additions,Balance Sheet,SPACELABS HEALTHCARE LTD,46392850,"3,214.76",SG13 7DT,573274135,IN317408,
Department of Health,St. Helens&Knowsley Hospitals NHS Trust,30/04/2023,IGComp3PSoft - Additions,Balance Sheet,PHILIPS UK AND IRELAND,46549003,"27,698.10",GU2 8XG,GB407850060,7300409558,
Department of Health,St. Helens&Knowsley Hospitals NHS Trust,30/04/2023,IGComp3PSoft - Additions,Balance Sheet,PHILIPS UK AND IRELAND,46549008,"27,040.00",GU2 8XG,GB407850060,9022310344,
Department of Health,St. Helens&Knowsley Hospitals NHS Trust,30/04/2023,IGComp3PSoft - Additions,Balance Sheet,EVERYWARE LTD,46715625,"19,000.00",CV32 4RJ,221335453,INV1453,
Department of Health,St. Helens&Knowsley Hospitals NHS Trust,30/04/2023,IGComp3PSoft - Additions,Balance Sheet,EVERYWARE LTD,46715625,"21,000.00",CV32 4RJ,221335453,INV1453,
Department of Health,St. Helens&Knowsley Hospitals NHS Trust,30/04/2023,IGComp3PSoft - Additions,Balance Sheet,EVERYWARE LTD,46715625,"8,000.00",CV32 4RJ,221335453,INV1453,
Department of Health,St. Helens&Knowsley Hospitals NHS Trust,30/04/2023,Independent Sector,RESERVES,FAIRFIELD INDEPENDENT HOSPITAL,46455314,"30,000.00",WA11 7RS,,103510,
Department of Health,St. Helens&Knowsley Hospitals NHS Trust,30/04/2023,Independent Sector,RESERVES,FAIRFIELD INDEPENDENT HOSPITAL,46455356,"30,000.00",WA11 7RS,,103535,
Department of Health,St. Helens&Knowsley Hospitals NHS Trust,30/04/2023,Interpreting services,A + E NURSING WHISTON,DA LANGUAGES LTD,46423598,673.92,M32 0FP,293366572,I0307982,
Department of Health,St. Helens&Knowsley Hospitals NHS Trust,30/04/2023,Interpreting services,AUDIOLOGY,DA LANGUAGES LTD,46423598,348.84,M32 0FP,293366572,I0307982,
Department of Health,St. Helens&Knowsley Hospitals NHS Trust,30/04/2023,Interpreting services,B + P DRESSINGS CLINIC,DA LANGUAGES LTD,46423598,368.10,M32 0FP,293366572,I0307982,
Department of Health,St. Helens&Knowsley Hospitals NHS Trust,30/04/2023,Interpreting services,B + P HOLBROOK UNIT,DA LANGUAGES LTD,46423598,206.40,M32 0FP,293366572,I0307982,
Department of Health,St. Helens&Knowsley Hospitals NHS Trust,30/04/2023,Interpreting services,B + P MEDICAL STAFF,DA LANGUAGES LTD,46423598,735.30,M32 0FP,293366572,I0307982,
Department of Health,St. Helens&Knowsley Hospitals NHS Trust,30/04/2023,Interpreting services,B + P PROSTHETIC SERVICE,DA LANGUAGES LTD,46423598,69.12,M32 0FP,293366572,I0307982,
Department of Health,St. Helens&Knowsley Hospitals NHS Trust,30/04/2023,Interpreting services,CANCER CORE STAFF AND NON-PAY,DA LANGUAGES LTD,46423598,82.02,M32 0FP,293366572,I0307982,
Department of Health,St. Helens&Knowsley Hospitals NHS Trust,30/04/2023,Interpreting services,CARDIO-RESPIRATORY (ECG),DA LANGUAGES LTD,46423598,607.32,M32 0FP,293366572,I0307982,
Department of Health,St. Helens&Knowsley Hospitals NHS Trust,30/04/2023,Interpreting services,CARDIOLOGY NURSING,DA LANGUAGES LTD,46423598,205.86,M32 0FP,293366572,I0307982,
Department of Health,St. Helens&Knowsley Hospitals NHS Trust,30/04/2023,Interpreting services,CARDIOLOGY SNR MEDICAL,DA LANGUAGES LTD,46423598,141.30,M32 0FP,293366572,I0307982,
Department of Health,St. Helens&Knowsley Hospitals NHS Trust,30/04/2023,Interpreting services,COMMUNITY CARDIAC TEAM,DA LANGUAGES LTD,46423598,16.20,M32 0FP,293366572,I0307982,
Department of Health,St. Helens&Knowsley Hospitals NHS Trust,30/04/2023,Interpreting services,COMMUNITY CONTINENCE SERVICE,DA LANGUAGES LTD,46423598,154.20,M32 0FP,293366572,I0307982,
Department of Health,St. Helens&Knowsley Hospitals NHS Trust,30/04/2023,Interpreting services,COMMUNITY MIDWIFERY,DA LANGUAGES LTD,46423598,885.96,M32 0FP,293366572,I0307982,
Department of Health,St. Helens&Knowsley Hospitals NHS Trust,30/04/2023,Interpreting services,DELIVERY SUITE,DA LANGUAGES LTD,46423598,861.18,M32 0FP,293366572,I0307982,
Department of Health,St. Helens&Knowsley Hospitals NHS Trust,30/04/2023,Interpreting services,DERMATOLOGY,DA LANGUAGES LTD,46423598,745.02,M32 0FP,293366572,I0307982,
Department of Health,St. Helens&Knowsley Hospitals NHS Trust,30/04/2023,Interpreting services,DIABETES NURSING,DA LANGUAGES LTD,46423598,738.30,M32 0FP,293366572,I0307982,
Department of Health,St. Helens&Knowsley Hospitals NHS Trust,30/04/2023,Interpreting services,DUFFY SUITE INTERMEDIATE CARE UNIT,DA LANGUAGES LTD,46423598,48.60,M32 0FP,293366572,I0307982,
Department of Health,St. Helens&Knowsley Hospitals NHS Trust,30/04/2023,Interpreting services,ENT MEDICAL STAFF,DA LANGUAGES LTD,46423598,"1,084.46",M32 0FP,293366572,I0307982,
Department of Health,St. Helens&Knowsley Hospitals NHS Trust,30/04/2023,Interpreting services,FETO MAT ASSESSMENT UNIT,DA LANGUAGES LTD,46423598,61.56,M32 0FP,293366572,I0307982,
Department of Health,St. Helens&Knowsley Hospitals NHS Trust,30/04/2023,Interpreting services,GASTROLOGY SNR MEDICAL,DA LANGUAGES LTD,46423598,539.94,M32 0FP,293366572,I0307982,
Department of Health,St. Helens&Knowsley Hospitals NHS Trust,30/04/2023,Interpreting services,GEN MED ENDOSCOPY H2,DA LANGUAGES LTD,46423598,891.54,M32 0FP,293366572,I0307982,
Department of Health,St. Helens&Knowsley Hospitals NHS Trust,30/04/2023,Interpreting services,GENERAL SURGERY MEDICAL,DA LANGUAGES LTD,46423598,"1,394.16",M32 0FP,293366572,I0307982,
Department of Health,St. Helens&Knowsley Hospitals NHS Trust,30/04/2023,Interpreting services,GPSI GYNAECOLOGY,DA LANGUAGES LTD,46423598,103.20,M32 0FP,293366572,I0307982,
Department of Health,St. Helens&Knowsley Hospitals NHS Trust,30/04/2023,Interpreting services,GYNAE OUTPATIEN ST HELENS,DA LANGUAGES LTD,46423598,551.10,M32 0FP,293366572,I0307982,
Department of Health,St. Helens&Knowsley Hospitals NHS Trust,30/04/2023,Interpreting services,GYNAECOLOGY OPD WHISTON,DA LANGUAGES LTD,46423598,"2,070.48",M32 0FP,293366572,I0307982,
Department of Health,St. Helens&Knowsley Hospitals NHS Trust,30/04/2023,Interpreting services,HAEMATOLOGY MEDICAL,DA LANGUAGES LTD,46423598,160.44,M32 0FP,293366572,I0307982,
Department of Health,St. Helens&Knowsley Hospitals NHS Trust,30/04/2023,Interpreting services,LASER CLINICS,DA LANGUAGES LTD,46423598,142.68,M32 0FP,293366572,I0307982,
Department of Health,St. Helens&Knowsley Hospitals NHS Trust,30/04/2023,Interpreting services,NEUROPHYSIOLOGY (EEG),DA LANGUAGES LTD,46423598,124.74,M32 0FP,293366572,I0307982,
Department of Health,St. Helens&Knowsley Hospitals NHS Trust,30/04/2023,Interpreting services,NEWTON HOSPITAL OP,DA LANGUAGES LTD,46423598,455.76,M32 0FP,293366572,I0307982,
Department of Health,St. Helens&Knowsley Hospitals NHS Trust,30/04/2023,Interpreting services,OBSTETRICS WARD 2E,DA LANGUAGES LTD,46423598,32.40,M32 0FP,293366572,I0307982,
Department of Health,St. Helens&Knowsley Hospitals NHS Trust,30/04/2023,Interpreting services,OPHTH RENNIE EYE CLINIC,DA LANGUAGES LTD,46423598,105.78,M32 0FP,293366572,I0307982,
Department of Health,St. Helens&Knowsley Hospitals NHS Trust,30/04/2023,Interpreting services,OPHTHALMOLOGY MEDICAL,DA LANGUAGES LTD,46423598,"1,946.88",M32 0FP,293366572,I0307982,
Department of Health,St. Helens&Knowsley Hospitals NHS Trust,30/04/2023,Interpreting services,ORTHODONTICS & ORAL & FACIAL SURGERY,DA LANGUAGES LTD,46423598,479.27,M32 0FP,293366572,I0307982,
Department of Health,St. Helens&Knowsley Hospitals NHS Trust,30/04/2023,Interpreting services,ORTHOPAEDIC MEDICAL STAFF,DA LANGUAGES LTD,46423598,882.30,M32 0FP,293366572,I0307982,
Department of Health,St. Helens&Knowsley Hospitals NHS Trust,30/04/2023,Interpreting services,ORTHOPTICS DEPARTMENT,DA LANGUAGES LTD,46423598,331.38,M32 0FP,293366572,I0307982,
Department of Health,St. Helens&Knowsley Hospitals NHS Trust,30/04/2023,Interpreting services,OUTPATIENTS ST HELENS,DA LANGUAGES LTD,46423598,96.78,M32 0FP,293366572,I0307982,
Department of Health,St. Helens&Knowsley Hospitals NHS Trust,30/04/2023,Interpreting services,OUTPATIENTS WHISTON,DA LANGUAGES LTD,46423598,438.90,M32 0FP,293366572,I0307982,
Department of Health,St. Helens&Knowsley Hospitals NHS Trust,30/04/2023,Interpreting services,PAEDIATRIC CONTINENCE,DA LANGUAGES LTD,46423598,27.00,M32 0FP,293366572,I0307982,
Department of Health,St. Helens&Knowsley Hospitals NHS Trust,30/04/2023,Interpreting services,PAEDIATRIC MEDICAL STAFF,DA LANGUAGES LTD,46423598,484.84,M32 0FP,293366572,I0307982,
Department of Health,St. Helens&Knowsley Hospitals NHS Trust,30/04/2023,Interpreting services,PALS,DA LANGUAGES LTD,46423598,118.12,M32 0FP,293366572,I0307982,
Department of Health,St. Helens&Knowsley Hospitals NHS Trust,30/04/2023,Interpreting services,PRE OP SCG,DA LANGUAGES LTD,46423598,487.08,M32 0FP,293366572,I0307982,
Department of Health,St. Helens&Knowsley Hospitals NHS Trust,30/04/2023,Interpreting services,RADIOGRAPHY WHISTON,DA LANGUAGES LTD,46423598,"5,576.09",M32 0FP,293366572,I0307982,
Department of Health,St. Helens&Knowsley Hospitals NHS Trust,30/04/2023,Interpreting services,RHEUMATOLOGY SNR MEDICAL,DA LANGUAGES LTD,46423598,454.80,M32 0FP,293366572,I0307982,
Department of Health,St. Helens&Knowsley Hospitals NHS Trust,30/04/2023,Interpreting services,SANDERSON SUITE GENERAL SURGERY,DA LANGUAGES LTD,46423598,"1,810.14",M32 0FP,293366572,I0307982,
Department of Health,St. Helens&Knowsley Hospitals NHS Trust,30/04/2023,Interpreting services,SEDDON SUITE TRAUMA REHAB UNIT,DA LANGUAGES LTD,46423598,91.92,M32 0FP,293366572,I0307982,
Department of Health,St. Helens&Knowsley Hospitals NHS Trust,30/04/2023,Interpreting services,SEXUAL HEALTH,DA LANGUAGES LTD,46423598,904.38,M32 0FP,293366572,I0307982,
Department of Health,St. Helens&Knowsley Hospitals NHS Trust,30/04/2023,Interpreting services,ST HELENS UTC,DA LANGUAGES LTD,46423598,69.12,M32 0FP,293366572,I0307982,
Department of Health,St. Helens&Knowsley Hospitals NHS Trust,30/04/2023,Interpreting services,THEATRES MEDICAL STAFF,DA LANGUAGES LTD,46423598,222.06,M32 0FP,293366572,I0307982,
Department of Health,St. Helens&Knowsley Hospitals NHS Trust,30/04/2023,Interpreting services,THERAPY MANAGEMENT & ADMIN.,DA LANGUAGES LTD,46423598,828.06,M32 0FP,293366572,I0307982,
Department of Health,St. Helens&Knowsley Hospitals NHS Trust,30/04/2023,Interpreting services,UROLOGY MEDICAL STAFF,DA LANGUAGES LTD,46423598,"1,689.06",M32 0FP,293366572,I0307982,
Department of Health,St. Helens&Knowsley Hospitals NHS Trust,30/04/2023,Interpreting services,VASCULAR SURGERY MEDICAL STAFF,DA LANGUAGES LTD,46423598,162.54,M32 0FP,293366572,I0307982,
Department of Health,St. Helens&Knowsley Hospitals NHS Trust,30/04/2023,Interpreting services,WARD 1B ACUTE MEDICAL UNIT,DA LANGUAGES LTD,46423598,105.18,M32 0FP,293366572,I0307982,
Department of Health,St. Helens&Knowsley Hospitals NHS Trust,30/04/2023,Interpreting services,WARD 1C ACUTE MEDICAL UNIT,DA LANGUAGES LTD,46423598,16.20,M32 0FP,293366572,I0307982,
Department of Health,St. Helens&Knowsley Hospitals NHS Trust,30/04/2023,Interpreting services,WARD 1E CORONARY CARE UNIT,DA LANGUAGES LTD,46423598,81.00,M32 0FP,293366572,I0307982,
Department of Health,St. Helens&Knowsley Hospitals NHS Trust,30/04/2023,Interpreting services,WARD 3A PLASTICS,DA LANGUAGES LTD,46423598,317.58,M32 0FP,293366572,I0307982,
Department of Health,St. Helens&Knowsley Hospitals NHS Trust,30/04/2023,Interpreting services,WARD 3ALPHA ORTHOPAEDICS,DA LANGUAGES LTD,46423598,446.88,M32 0FP,293366572,I0307982,
Department of Health,St. Helens&Knowsley Hospitals NHS Trust,30/04/2023,Interpreting services,WARD 3E GYNAECOLOGY,DA LANGUAGES LTD,46423598,645.00,M32 0FP,293366572,I0307982,
Department of Health,St. Helens&Knowsley Hospitals NHS Trust,30/04/2023,Interpreting services,WARD 3F PAEDIATRICS,DA LANGUAGES LTD,46423598,16.20,M32 0FP,293366572,I0307982,
Department of Health,St. Helens&Knowsley Hospitals NHS Trust,30/04/2023,Interpreting services,WARD 4B GENERAL SURGERY,DA LANGUAGES LTD,46423598,165.72,M32 0FP,293366572,I0307982,
Department of Health,St. Helens&Knowsley Hospitals NHS Trust,30/04/2023,Interpreting services,WARD 4D BURNS,DA LANGUAGES LTD,46423598,313.14,M32 0FP,293366572,I0307982,
Department of Health,St. Helens&Knowsley Hospitals NHS Trust,30/04/2023,Interpreting services,WARD 4F PAEDIATRICS,DA LANGUAGES LTD,46423598,44.28,M32 0FP,293366572,I0307982,
Department of Health,St. Helens&Knowsley Hospitals NHS Trust,30/04/2023,Interpreting services,WARD 5C ACUTE STROKE UNIT (HASU),DA LANGUAGES LTD,46423598,139.44,M32 0FP,293366572,I0307982,
Department of Health,St. Helens&Knowsley Hospitals NHS Trust,30/04/2023,Interpreting services,WOMENS OPD,DA LANGUAGES LTD,46423598,"1,053.30",M32 0FP,293366572,I0307982,
Department of Health,St. Helens&Knowsley Hospitals NHS Trust,30/04/2023,IT Additions,Balance Sheet,SPACELABS HEALTHCARE LTD,46392850,"24,982.50",SG13 7DT,573274135,IN317408,
Department of Health,St. Helens&Knowsley Hospitals NHS Trust,30/04/2023,IT Additions,Balance Sheet,SPACELABS HEALTHCARE LTD,46392850,"4,996.50",SG13 7DT,573274135,IN317408,
Department of Health,St. Helens&Knowsley Hospitals NHS Trust,30/04/2023,IT Additions,Balance Sheet,PHILIPS ELECTRONICS UK LTD,46629617,"83,133.45",GU14 6XW,407850060,9022512703,
Department of Health,St. Helens&Knowsley Hospitals NHS Trust,30/04/2023,Laboratory Chemicals,HISTOPATHOLOGY/MORTUARY,ROCHE DIAGNOSTICS LTD,46248769,"-16,620.44",RH15 9RY,684424418,6571704504,
Department of Health,St. Helens&Knowsley Hospitals NHS Trust,30/04/2023,Laboratory Chemicals,CHEMICAL PATHOLOGY DEPT,SIEMENS HEALTHCARE DIAGNOSTICS LTD,46456332,"171,002.08",GU15 3YL,636163443,115067618,
Department of Health,St. Helens&Knowsley Hospitals NHS Trust,30/04/2023,Laboratory Chemicals,CHEMICAL PATHOLOGY DEPT,SIEMENS HEALTHCARE DIAGNOSTICS LTD,46456332,"34,200.42",GU15 3YL,636163443,115067618,
Department of Health,St. Helens&Knowsley Hospitals NHS Trust,30/04/2023,Laboratory Chemicals,CHEMICAL PATHOLOGY DEPT,SIEMENS HEALTHCARE DIAGNOSTICS LTD,46456333,"173,455.47",GU15 3YL,636163443,115067619,
Department of Health,St. Helens&Knowsley Hospitals NHS Trust,30/04/2023,Laboratory Chemicals,CHEMICAL PATHOLOGY DEPT,SIEMENS HEALTHCARE DIAGNOSTICS LTD,46456333,"34,691.09",GU15 3YL,636163443,115067619,
Department of Health,St. Helens&Knowsley Hospitals NHS Trust,30/04/2023,Laboratory Chemicals,HAEM + BLOOD TRANSFUSION,HAEMONETICS LTD,46464775,"31,365.00",CV3 2TX,224345486,27796,
Department of Health,St. Helens&Knowsley Hospitals NHS Trust,30/04/2023,Laboratory Chemicals,HAEM + BLOOD TRANSFUSION,HAEMONETICS LTD,46464775,941.00,CV3 2TX,224345486,27796,
Department of Health,St. Helens&Knowsley Hospitals NHS Trust,30/04/2023,Laboratory Chemicals,HAEM + BLOOD TRANSFUSION,HAEMONETICS LTD,46464775,"6,461.20",CV3 2TX,224345486,27796,
Department of Health,St. Helens&Knowsley Hospitals NHS Trust,30/04/2023,Laboratory Chemicals,CHEMICAL PATHOLOGY DEPT,SIEMENS HEALTHCARE DIAGNOSTICS LTD,46546005,"202,415.81",GU15 3YL,636163443,115078829,
Department of Health,St. Helens&Knowsley Hospitals NHS Trust,30/04/2023,Laboratory Chemicals,CHEMICAL PATHOLOGY DEPT,SIEMENS HEALTHCARE DIAGNOSTICS LTD,46546005,"40,483.16",GU15 3YL,636163443,115078829,
Department of Health,St. Helens&Knowsley Hospitals NHS Trust,30/04/2023,Laboratory Equipment,HISTOPATHOLOGY/MORTUARY,ROCHE DIAGNOSTICS LTD,46248769,"83,102.22",RH15 9RY,684424418,6571704504,
Department of Health,St. Helens&Knowsley Hospitals NHS Trust,30/04/2023,Laboratory Equipment,HISTOPATHOLOGY/MORTUARY,ROCHE DIAGNOSTICS LTD,46248769,"16,620.44",RH15 9RY,684424418,6571704504,
Department of Health,St. Helens&Knowsley Hospitals NHS Trust,30/04/2023,Laboratory Equipment,HISTOPATHOLOGY/MORTUARY,EVIDENT EUROPE GMBH - UK BRANCH,46680954,"98,332.25",CM24 1AL,,9040002825,
Department of Health,St. Helens&Knowsley Hospitals NHS Trust,30/04/2023,Laboratory Equipment,HISTOPATHOLOGY/MORTUARY,EVIDENT EUROPE GMBH - UK BRANCH,46680954,"19,666.45",CM24 1AL,,9040002825,
Department of Health,St. Helens&Knowsley Hospitals NHS Trust,30/04/2023,Lease Rents,PFI DESIGN + CONSTRUCTION,HLGB,46574026,"76,500.00",WA4 6HL,,SHKFLATSAPRIL23,
Department of Health,St. Helens&Knowsley Hospitals NHS Trust,30/04/2023,Lease Rents,STAFF ACCOMMODATION,HLGB,46591485,"34,380.00",WA4 6HL,,SHRSAPRIL23,
Department of Health,St. Helens&Knowsley Hospitals NHS Trust,30/04/2023,Legal / Prof Fees,FINANCE DIRECTORATE HQ,WEIGHTMANS LLP,46516950,"23,605.50",L3 9QJ,GB 974 8257 69,02156818,
Department of Health,St. Helens&Knowsley Hospitals NHS Trust,30/04/2023,Long Trm Loans - Non-Curr,Balance Sheet,10003266,SALIXFIN008056,"210,836.51 ",,,
Department of Health,St. Helens&Knowsley Hospitals NHS Trust,30/04/2023,Med & Surg Equip Disp,GEN MED ENDOSCOPY H2,BOSTON SCIENTIFIC LTD,46476243,"4,352.48",HP2 4TZ,896105403,7162690356,
Department of Health,St. Helens&Knowsley Hospitals NHS Trust,30/04/2023,Med & Surg Equip General,GI PHYSIOLOGY AND PILL CAM,MEDTRONIC LTD,46430667,"-21,500.00",WD18 8WW,467254526,1205296395CRCORR,
Department of Health,St. Helens&Knowsley Hospitals NHS Trust,30/04/2023,Med & Surg Equip General,GI PHYSIOLOGY AND PILL CAM,MEDTRONIC LTD,46430667,"-4,300.00",WD18 8WW,467254526,1205296395CRCORR,
Department of Health,St. Helens&Knowsley Hospitals NHS Trust,30/04/2023,Med & Surg Equip General,GI PHYSIOLOGY AND PILL CAM,MEDTRONIC LTD,46430668,"21,500.00",WD18 8WW,467254526,1205296395DRCORR,
Department of Health,St. Helens&Knowsley Hospitals NHS Trust,30/04/2023,Med & Surg Equip General,GI PHYSIOLOGY AND PILL CAM,MEDTRONIC LTD,46430668,"4,300.00",WD18 8WW,467254526,1205296395DRCORR,
Department of Health,St. Helens&Knowsley Hospitals NHS Trust,30/04/2023,Med & Surg Equip General,IRREG MAINT WHISTON,EVERYWARE LTD,46715625,"12,000.00",CV32 4RJ,221335453,INV1453,
Department of Health,St. Helens&Knowsley Hospitals NHS Trust,30/04/2023,Med & Surg Equip General,IRREG MAINT WHISTON,EVERYWARE LTD,46715625,"45,000.00",CV32 4RJ,221335453,INV1453,
Department of Health,St. Helens&Knowsley Hospitals NHS Trust,30/04/2023,Med & Surg Equip General,IRREG MAINT WHISTON,EVERYWARE LTD,46715625,"10,000.00",CV32 4RJ,221335453,INV1453,
Department of Health,St. Helens&Knowsley Hospitals NHS Trust,30/04/2023,Med & Surg Equip General,IRREG MAINT WHISTON,EVERYWARE LTD,46715625,"13,400.00",CV32 4RJ,221335453,INV1453,
Department of Health,St. Helens&Knowsley Hospitals NHS Trust,30/04/2023,Med & Surg Equip Hire,WHISTON EQUIPMENT POOL,MEDSTROM LTD,46464804,"60,945.85",DE74 2SA,885208793,141461,
Department of Health,St. Helens&Knowsley Hospitals NHS Trust,30/04/2023,Med & Surg Equip Hire,WHISTON EQUIPMENT POOL,MEDSTROM LTD,46464804,"12,189.17",DE74 2SA,885208793,141461,
Department of Health,St. Helens&Knowsley Hospitals NHS Trust,30/04/2023,Med & Surg Maint Contract,CARDIO-RESPIRATORY (ECG),SUPPLY CHAIN COORDINATION LIMITED,46514786,"22,991.41",DE55 4QJ,290885854,7174000088,
Department of Health,St. Helens&Knowsley Hospitals NHS Trust,30/04/2023,Med & Surg Maint Contract,COLD DECONTAMINATION WHISTON,IM MED LTD,46630869,"30,590.38",CB25 9QP,GB251630530,SI00004637,
Department of Health,St. Helens&Knowsley Hospitals NHS Trust,30/04/2023,Med Equip Additions,Balance Sheet,MEDTRONIC LTD,46392795,"18,225.00",WD18 8WW,467254526,1205399941,
Department of Health,St. Helens&Knowsley Hospitals NHS Trust,30/04/2023,Med Equip Additions,Balance Sheet,MEDTRONIC LTD,46392795,"13,496.94",WD18 8WW,467254526,1205399941,
Department of Health,St. Helens&Knowsley Hospitals NHS Trust,30/04/2023,Med Equip Additions,Balance Sheet,MEDTRONIC LTD,46392795,"6,344.39",WD18 8WW,467254526,1205399941,
Department of Health,St. Helens&Knowsley Hospitals NHS Trust,30/04/2023,Med Equip Additions,Balance Sheet,THD (UK) LTD,46440813,"77,796.00",WR4 9PT,939427193,19782,
Department of Health,St. Helens&Knowsley Hospitals NHS Trust,30/04/2023,Med Equip Additions,Balance Sheet,THD (UK) LTD,46440813,"15,559.20",WR4 9PT,939427193,19782,
Department of Health,St. Helens&Knowsley Hospitals NHS Trust,30/04/2023,Med Equip Additions,Balance Sheet,OMNICELL LTD,46453741,"47,770.22",M44 5GR,GB775871379,0000010073,
Department of Health,St. Helens&Knowsley Hospitals NHS Trust,30/04/2023,Med Equip Additions,Balance Sheet,OMNICELL LTD,46453741,"3,902.43",M44 5GR,GB775871379,0000010073,
Department of Health,St. Helens&Knowsley Hospitals NHS Trust,30/04/2023,Med Equip Additions,Balance Sheet,OMNICELL LTD,46453741,"10,334.53",M44 5GR,GB775871379,0000010073,
Department of Health,St. Helens&Knowsley Hospitals NHS Trust,30/04/2023,Med Equip Additions,Balance Sheet,LAERDAL MEDICAL LTD,46589315,26.47,BR6 0HX,GB 654 965 884,2023UK04321,
Department of Health,St. Helens&Knowsley Hospitals NHS Trust,30/04/2023,Med Equip Additions,Balance Sheet,LAERDAL MEDICAL LTD,46589315,"1,629.00",BR6 0HX,GB 654 965 884,2023UK04321,
Department of Health,St. Helens&Knowsley Hospitals NHS Trust,30/04/2023,Med Equip Additions,Balance Sheet,LAERDAL MEDICAL LTD,46589315,250.00,BR6 0HX,GB 654 965 884,2023UK04321,
Department of Health,St. Helens&Knowsley Hospitals NHS Trust,30/04/2023,Med Equip Additions,Balance Sheet,LAERDAL MEDICAL LTD,46589315,"1,619.00",BR6 0HX,GB 654 965 884,2023UK04321,
Department of Health,St. Helens&Knowsley Hospitals NHS Trust,30/04/2023,Med Equip Additions,Balance Sheet,LAERDAL MEDICAL LTD,46589315,704.89,BR6 0HX,GB 654 965 884,2023UK04321,
Department of Health,St. Helens&Knowsley Hospitals NHS Trust,30/04/2023,Med Equip Additions,Balance Sheet,SURGICAL INSTRUMENT GROUP HOLDINGS LTD,46614604,"34,896.15",MK14 6FD,663453331,60101,
Department of Health,St. Helens&Knowsley Hospitals NHS Trust,30/04/2023,Med Equip Additions,Balance Sheet,SURGICAL INSTRUMENT GROUP HOLDINGS LTD,46614604,"6,979.23",MK14 6FD,663453331,60101,
Department of Health,St. Helens&Knowsley Hospitals NHS Trust,30/04/2023,Med Equip Additions,Balance Sheet,KARL STORZ ENDOSCOPY UK LTD,46616616,"129,908.93",DD2 1UB,663726417,5080320827,
Department of Health,St. Helens&Knowsley Hospitals NHS Trust,30/04/2023,Med Equip Additions,Balance Sheet,KARL STORZ ENDOSCOPY UK LTD,46616617,"153,977.50",DD2 1UB,663726417,5080322196,
Department of Health,St. Helens&Knowsley Hospitals NHS Trust,30/04/2023,Med Equip Additions,Balance Sheet,KARL STORZ ENDOSCOPY UK LTD,46616618,"58,889.28",DD2 1UB,663726417,5080322200,
Department of Health,St. Helens&Knowsley Hospitals NHS Trust,30/04/2023,Med Equip Additions,Balance Sheet,KARL STORZ ENDOSCOPY UK LTD,46616619,"91,267.42",DD2 1UB,663726417,5080322332,
Department of Health,St. Helens&Knowsley Hospitals NHS Trust,30/04/2023,Med Equip Additions,Balance Sheet,OLYMPUS KEYMED,46629614,"756,396.90",SS2 5QH,250317495,A1758027,
Department of Health,St. Helens&Knowsley Hospitals NHS Trust,30/04/2023,Meeting expense/Room Hire,GENERAL SURGERY MEDICAL,BARCELO BRNO PALACE HOTEL,46332010,"1,151.59",140 00 PRAHA 4,,16024864,
Department of Health,St. Helens&Knowsley Hospitals NHS Trust,30/04/2023,Miscellaneous Expenditure,PFI ENABLING WORKS,NEW HOSPITALS (ST HELENS & KNOWSLEY) LTD,46456060,"16,181,520.13",BR8 7AG,864464302,INV000070,
Department of Health,St. Helens&Knowsley Hospitals NHS Trust,30/04/2023,Miscellaneous Expenditure,PFI ENABLING WORKS,NEW HOSPITALS (ST HELENS & KNOWSLEY) LTD,46456060,"3,236,304.03",BR8 7AG,864464302,INV000070,
Department of Health,St. Helens&Knowsley Hospitals NHS Trust,30/04/2023,Miscellaneous Expenditure,PFI ENABLING WORKS,NEW HOSPITALS (ST HELENS & KNOWSLEY) LTD,46458673,"1,060,446.21",BR8 7AG,864464302,INV000081,
Department of Health,St. Helens&Knowsley Hospitals NHS Trust,30/04/2023,Miscellaneous Expenditure,PFI ENABLING WORKS,NEW HOSPITALS (ST HELENS & KNOWSLEY) LTD,46458673,"212,089.25",BR8 7AG,864464302,INV000081,
Department of Health,St. Helens&Knowsley Hospitals NHS Trust,30/04/2023,Miscellaneous Expenditure,PFI UNITARY PAYMENT,NEW HOSPITALS (ST HELENS & KNOWSLEY) LTD,46458673,"1,734.38",BR8 7AG,864464302,INV000081,
Department of Health,St. Helens&Knowsley Hospitals NHS Trust,30/04/2023,Miscellaneous Expenditure,PFI UNITARY PAYMENT,NEW HOSPITALS (ST HELENS & KNOWSLEY) LTD,46458673,191.23,BR8 7AG,864464302,INV000081,
Department of Health,St. Helens&Knowsley Hospitals NHS Trust,30/04/2023,Miscellaneous Expenditure,HSDU WHISTON,SYNERGY HEALTH (UK) LTD,46488396,"219,551.52",DE21 6LY,706163456,119430,
Department of Health,St. Helens&Knowsley Hospitals NHS Trust,30/04/2023,Miscellaneous Expenditure,HSDU WHISTON,SYNERGY HEALTH (UK) LTD,46488409,"63,782.05",DE21 6LY,706163456,119743,
Department of Health,St. Helens&Knowsley Hospitals NHS Trust,30/04/2023,Miscellaneous Expenditure,INTERNATIONAL RECRUITMENT,AMP SCITT,46547767,"24,356.05",L13 1FB,,AMSI109,
Department of Health,St. Helens&Knowsley Hospitals NHS Trust,30/04/2023,Miscellaneous Expenditure,MVP LEAD EMPLOYER SUPPORT,AMP SCITT,46547767,"12,178.02",L13 1FB,,AMSI109,
Department of Health,St. Helens&Knowsley Hospitals NHS Trust,30/04/2023,Miscellaneous Expenditure,BEVAN COURT FM,NEW HOSPITALS (ST HELENS & KNOWSLEY) LTD,46591260,"93,545.72",BR8 7AG,864464302,INV000071,
Department of Health,St. Helens&Knowsley Hospitals NHS Trust,30/04/2023,NonNHS Trade Pybls Curr,Balance Sheet,SUPPLY CHAIN COORDINATION LIMITED,46456821,"119,446.26",DE55 4QJ,290885854,1123307762,
Department of Health,St. Helens&Knowsley Hospitals NHS Trust,30/04/2023,NonNHS Trade Pybls Curr,Balance Sheet,SUPPLY CHAIN COORDINATION LIMITED,46456898,"125,274.70",DE55 4QJ,290885854,1123308630,
Department of Health,St. Helens&Knowsley Hospitals NHS Trust,30/04/2023,NonNHS Trade Pybls Curr,Balance Sheet,SUPPLY CHAIN COORDINATION LIMITED,46574629,"155,288.22",DE55 4QJ,290885854,1124002934,
Department of Health,St. Helens&Knowsley Hospitals NHS Trust,30/04/2023,NonNHS Trade Pybls Curr,Balance Sheet,SUPPLY CHAIN COORDINATION LIMITED,46574632,"73,894.92",DE55 4QJ,290885854,1124003550,
Department of Health,St. Helens&Knowsley Hospitals NHS Trust,30/04/2023,NonRes Bldg Additions,Balance Sheet,VINCI CONSTRUCTION UK LTD,46004743,"104,308.74",WD24 4WW,165103003,23010340,
Department of Health,St. Helens&Knowsley Hospitals NHS Trust,30/04/2023,Printing Costs,GEN MED ENDOSCOPY H2,OLYMPUS KEYMED,46458660,"194,690.85",SS2 5QH,250317495,CD2838400,
Department of Health,St. Helens&Knowsley Hospitals NHS Trust,30/04/2023,Printing Costs,GEN MED ENDOSCOPY H2,OLYMPUS KEYMED,46458660,"212,398.05",SS2 5QH,250317495,CD2838400,
Department of Health,St. Helens&Knowsley Hospitals NHS Trust,30/04/2023,Stocks Raw Materials,Balance Sheet,ALLIANCE HEALTHCARE DISTRIBUTION LTD,46456029,"9,038.87",KT9 1SN,GB386334767,MARCH12032023,
Department of Health,St. Helens&Knowsley Hospitals NHS Trust,30/04/2023,Stocks Raw Materials,Balance Sheet,ALLIANCE HEALTHCARE DISTRIBUTION LTD,46456029,"46,174.01",KT9 1SN,GB386334767,MARCH12032023,
Department of Health,St. Helens&Knowsley Hospitals NHS Trust,30/04/2023,Stocks Raw Materials,Balance Sheet,AAH PHARMACEUTICALS LTD,46456031,"8,602.08",WA2 8UH,GB 222 5169 87,MARCH12032023,
Department of Health,St. Helens&Knowsley Hospitals NHS Trust,30/04/2023,Stocks Raw Materials,Balance Sheet,AAH PHARMACEUTICALS LTD,46456031,"45,946.49",WA2 8UH,GB 222 5169 87,MARCH12032023,
Department of Health,St. Helens&Knowsley Hospitals NHS Trust,30/04/2023,Stocks Raw Materials,Balance Sheet,PHOENIX HEALTHCARE DISTRIBUTION LTD,46456032,"6,702.14",WA7 3DJ,109898228,MARCH12032023,
Department of Health,St. Helens&Knowsley Hospitals NHS Trust,30/04/2023,Stocks Raw Materials,Balance Sheet,PHOENIX HEALTHCARE DISTRIBUTION LTD,46456032,"34,287.35",WA7 3DJ,109898228,MARCH12032023,
Department of Health,St. Helens&Knowsley Hospitals NHS Trust,30/04/2023,Stocks Raw Materials,Balance Sheet,SCIENSUS PHARMA SERVICES LTD,46456033,"52,659.61",DE14 1SZ,GB873342418,MARCH12032023,
Department of Health,St. Helens&Knowsley Hospitals NHS Trust,30/04/2023,Stocks Raw Materials,Balance Sheet,MAWDSLEY BROOKS & CO LTD,46456034,"5,495.93",M50 2PW,GB974809667,MARCH12032023,
Department of Health,St. Helens&Knowsley Hospitals NHS Trust,30/04/2023,Stocks Raw Materials,Balance Sheet,MAWDSLEY BROOKS & CO LTD,46456034,"27,511.14",M50 2PW,GB974809667,MARCH12032023,
Department of Health,St. Helens&Knowsley Hospitals NHS Trust,30/04/2023,Stocks Raw Materials,Balance Sheet,BAYER PLC,46465334,"27,373.68",RG14 1JA,641958611,824C481795,
Department of Health,St. Helens&Knowsley Hospitals NHS Trust,30/04/2023,Stocks Raw Materials,Balance Sheet,AMGEN LTD,46465349,"1,317.60",4801 EC,538389011,964561325,
Department of Health,St. Helens&Knowsley Hospitals NHS Trust,30/04/2023,Stocks Raw Materials,Balance Sheet,AMGEN LTD,46465349,"14,315.40",4801 EC,538389011,964561325,
Department of Health,St. Helens&Knowsley Hospitals NHS Trust,30/04/2023,Stocks Raw Materials,Balance Sheet,AMGEN LTD,46465349,380.56,4801 EC,538389011,964561325,
Department of Health,St. Helens&Knowsley Hospitals NHS Trust,30/04/2023,Stocks Raw Materials,Balance Sheet,AMGEN LTD,46465349,164.91,4801 EC,538389011,964561325,
Department of Health,St. Helens&Knowsley Hospitals NHS Trust,30/04/2023,Stocks Raw Materials,Balance Sheet,AMGEN LTD,46465349,"24,255.00",4801 EC,538389011,964561325,
Department of Health,St. Helens&Knowsley Hospitals NHS Trust,30/04/2023,Stocks Raw Materials,Balance Sheet,NOVARTIS PHARMACEUTICALS UK LTD,46465400,"24,793.44",GU16 7SR,557290227,92753793,
Department of Health,St. Helens&Knowsley Hospitals NHS Trust,30/04/2023,Stocks Raw Materials,Balance Sheet,NOVARTIS PHARMACEUTICALS UK LTD,46465400,"3,862.63",GU16 7SR,557290227,92753793,
Department of Health,St. Helens&Knowsley Hospitals NHS Trust,30/04/2023,Stocks Raw Materials,Balance Sheet,NOVARTIS PHARMACEUTICALS UK LTD,46465400,49.44,GU16 7SR,557290227,92753793,
Department of Health,St. Helens&Knowsley Hospitals NHS Trust,30/04/2023,Stocks Raw Materials,Balance Sheet,NOVARTIS PHARMACEUTICALS UK LTD,46465400,6.61,GU16 7SR,557290227,92753793,
Department of Health,St. Helens&Knowsley Hospitals NHS Trust,30/04/2023,Stocks Raw Materials,Balance Sheet,NOVARTIS PHARMACEUTICALS UK LTD,46465454,"26,903.52",GU16 7SR,557290227,92756182,
Department of Health,St. Helens&Knowsley Hospitals NHS Trust,30/04/2023,Stocks Raw Materials,Balance Sheet,NOVARTIS PHARMACEUTICALS UK LTD,46465454,4.49,GU16 7SR,557290227,92756182,
Department of Health,St. Helens&Knowsley Hospitals NHS Trust,30/04/2023,Stocks Raw Materials,Balance Sheet,BAYER PLC,46548338,"26,461.22",RG14 1JA,641958611,824C485069,
Department of Health,St. Helens&Knowsley Hospitals NHS Trust,30/04/2023,Stocks Raw Materials,Balance Sheet,NOVARTIS PHARMACEUTICALS UK LTD,46632315,"30,068.64",GU16 7SR,557290227,92646043AA,
Department of Health,St. Helens&Knowsley Hospitals NHS Trust,30/04/2023,Stocks Raw Materials,Balance Sheet,NOVARTIS PHARMACEUTICALS UK LTD,46632315,"1,463.11",GU16 7SR,557290227,92646043AA,
Department of Health,St. Helens&Knowsley Hospitals NHS Trust,30/04/2023,Stocks Raw Materials,Balance Sheet,SCIENSUS PHARMA SERVICES LTD,46665141,"110,485.73",DE14 1SZ,GB873342418,MARCH26032023,
Department of Health,St. Helens&Knowsley Hospitals NHS Trust,30/04/2023,Stocks Raw Materials,Balance Sheet,SCIENSUS PHARMA SERVICES LTD,46665150,"132,636.90",DE14 1SZ,GB873342418,APRIL02042023,
Department of Health,St. Helens&Knowsley Hospitals NHS Trust,30/04/2023,Stocks Raw Materials,Balance Sheet,PHOENIX HEALTHCARE DISTRIBUTION LTD,46715594,"38,089.65",WA7 3DJ,109898228,MARCH26032023,
Department of Health,St. Helens&Knowsley Hospitals NHS Trust,30/04/2023,Stocks Raw Materials,Balance Sheet,MAWDSLEY BROOKS & CO LTD,46715599,"30,781.86",M50 2PW,GB974809667,APRIL02042023,
Department of Health,St. Helens&Knowsley Hospitals NHS Trust,30/04/2023,Training Materials,POST GRAD MEDICAL CENTRE,LAERDAL MEDICAL LTD,46589315,"33,999.00",BR6 0HX,GB 654 965 884,2023UK04321,
Department of Health,St. Helens&Knowsley Hospitals NHS Trust,30/04/2023,Training Materials,POST GRAD MEDICAL CENTRE,LAERDAL MEDICAL LTD,46589315,"6,799.80",BR6 0HX,GB 654 965 884,2023UK04321,
Department of Health,St. Helens&Knowsley Hospitals NHS Trust,30/04/2023,Water,RATES/WATER WHISTON,WATER PLUS LTD,46455523,"40,574.93",S98 1DY,GB243663406,WPINV01337940,
Department of Health,St. Helens&Knowsley Hospitals NHS Trust,30/04/2023,Water,RATES/WATER WHISTON,WATER PLUS LTD,46463586,"25,923.82",S98 1DY,GB243663406,WPINV01673121,
Department of Health,St. Helens&Knowsley Hospitals NHS Trust,30/04/2023,X-Ray Equipment Purchase,RADIOGRAPHY WHISTON,DIAGNOSTIC HEALTHCARE LTD,46527665,"45,750.00",M22 4BJ,204941917,210622,
